Workbook

Sheet Metals
A1: Metals Standards Calculator
C2: 1C: max | D2: 3A-3D: Acute (1-Hour Average) | G2: 3A-3D: Chronic (4-Day Average) | J2: 4: max
C3: Dissolved | D3: Total Recoverable | E3: CF | F3: Dissolved | G3: Total Recoverable | H3: CF | I3: Dissolved | J3: Dissolved
A4: Hardness | B4: 154.5 | C4: ug/L | D4: ug/l | F4: ug/l | G4: ug/l | I4: ug/l | J4: ug/L
A5: Aluminum | D5: 750 | E5: 1 | F5: =D5*E5 -> 750 | G5: 87 | H5: 1 | I5: =G5*H5 -> 87 | K5: =isformula(E5) -> FALSE | L5: =IF(isformula(E5)=FALSE,E5,B$4) -> 1
A6: Arsenic | C6: 10 | D6: 340 | E6: 1 | F6: =D6*E6 -> 340 | G6: 150 | H6: 1 | I6: =G6*H6 -> 150 | J6: 100 | K6: =isformula(E6) -> FALSE | L6: =IF(isformula(E6)=FALSE,E6,B$4) -> 1
A7: Barium | C7: 1000 | K7: FALSE | L7: 0
A8: Beryllium | C8: 4 | K8: FALSE | L8: 0
A9: Cadmium | C9: 10 | D9: =EXP(1.0166*(LN($B$4))-3.924) -> 3.319656515 | E9: =1.136672-LN($B$4)*(0.041838) -> 0.9258003594 | F9: 3.073339195 | G9: =EXP(0.7409*(LN($B$4))-4.719) -> 0.3735437321 | H9: =1.101672-LN($B$4)*(0.041838) -> 0.8908003594 | I9: =G9*H9 -> 0.3327528908 | J9: 10 | K9: TRUE | L9: 154.5
A10: Chromium VI | D10: 16 | E10: 1 | F10: 16 | G10: 11 | H10: 1 | I10: 11 | K10: FALSE | L10: 1
A11: Chromium III | D11: =EXP(0.819*(LN($B$4))+3.7256) -> 2574.77895 | E11: 0.316 | F11: =D11*E11 -> 813.6301483 | G11: =EXP(0.819*(LN($B$4))+0.6848) -> 123.0657746 | H11: 0.86 | I11: 105.8365661 | K11: FALSE | L11: 0.316
A12: Chromium | C12: 50 | J12: 100 | K12: FALSE | L12: 0
A13: Copper | C13: 1300 | D13: =EXP(0.9422*(LN($B$4))-1.7) -> 21.09151607 | E13: 0.96 | F13: 20.24785543 | G13: =EXP(0.8545*(LN($B$4))-1.702) -> 13.5291397 | H13: 0.96 | I13: 12.98797411 | J13: 200 | K13: FALSE | L13: 0.96
A14: Iron | D14: 1000 | E14: 1 | F14: =D14*E14 -> 1000 | G14: 1 | K14: =isformula(E14) -> FALSE | L14: 1
A15: Lead | C15: 15 | D15: =EXP(1.273*(LN($B$4))-1.46) -> 142.048292 | E15: =1.46203-LN($B$4)*(0.145712) -> 0.7276132378 | F15: 103.3562177 | G15: =EXP(1.273*(LN($B$4))-4.705) -> 5.535418011 | H15: =1.46203-LN($B$4)*(0.145712) -> 0.7276132378 | I15: =G15*H15 -> 4.027643421 | J15: 100 | K15: TRUE | L15: 154.5
A16: Mercury | C16: 2 | D16: 2.4 | E16: 1 | F16: 2.4 | G16: 0.012 | H16: 1 | I16: =G16*H16 -> 0.012 | K16: FALSE | L16: 1
A17: Nickel | C17: 100 | D17: =EXP(0.846*(LN($B$4))+2.255) -> 677.902997 | E17: 0.998 | F17: 676.5471911 | G17: =EXP(0.846*(LN($B$4))+0.0584) -> 75.36961468 | H17: 0.997 | I17: =G17*H17 -> 75.14350584 | K17: FALSE | L17: 0.998
A18: Selenium | C18: 50 | D18: 18.4 | E18: 1 | F18: 18.4 | G18: 4.6 | H18: 1 | I18: =G18*H18 -> 4.6 | J18: 50 | K18: FALSE | L18: 1
A19: Silver | C19: 50 | D19: =EXP(1.72*(LN($B$4))-6.59) -> 7.997538811 | E19: 0.85 | F19: 6.797907989 | K19: =isformula(E19) -> FALSE | L19: 0.85
A20: Zinc | C20: 7400 | D20: =EXP(0.8473*(LN($B$4))+0.884) -> 173.2189598 | E20: 0.978 | F20: =D20*E20 -> 169.4081427 | G20: =EXP(0.8473*(LN($B$4))+0.884) -> 173.2189598 | H20: 0.986 | I20: =G20*H20 -> 170.7938944 | K20: FALSE | L20: 0.978
A21: Antimony | C21: 5.6 | K21: FALSE | L21: 0
A22: Cyanide | C22: 140 | K22: FALSE | L22: 0
A23: Thallium | C23: 0.24 | K23: FALSE | L23: 0
A24: Italicized standards are human health based - R 317-2-14,Table 2.14.6 | L24: 0
A27: Activity ID | B27: Activity Start Date | C27: Activity Start Time | D27: Monitoring Location ID | E27: Monitoring Location Name | F27: Cadmium | G27: Copper | H27: Iron | I27: Lead | J27: Total dissolved solids | K27: Zinc | L27: Arsenic | M27: Hardness, Ca, Mg
F28: ug/l - Dissolved | G28: ug/l - Dissolved | H28: ug/l - Dissolved | I28: ug/l - Dissolved | J28: mg/l - Total | K28: ug/l - Dissolved | L28: ug/l - Dissolved | M28: mg/l - Dissolved
A29: UCASE2009-4995000-1007-4-C | B29: 2009-10-07 | C29: 12:30:00 | D29: 4995000 | E29: MARY ELLEN GULCH AB CNFL W/ N. FK OF AMERICAN FK | F29: 0.625 | G29: 1.86 | H29: 30.5 | I29: 0.301 | J29: 166 | K29: 91.9 | L29: 1.12 | M29: 144.8
F30: exceeding 3A chronic
H41: ````

Sheet Results
A1: STORET | B1: Date | C1: Param_Short | D1: DepthCode | E1: Depth | F1: Qry_Harndess.Fraction | G1: Qry_Harndess.AvgOfValue | H1: Qry_Metals 1.Fraction | I1: Qry_Metals 1.AvgOfValue
A2: 5941800 | B2: 1992-06-16 | C2: Ag | D2: 21 | E2: 0 | F2: Total | G2: 83.4 | H2: Dissolved | I2: 1
A3: 5941800 | B3: 1992-06-16 | C3: Ag | D3: 29 | E3: 9 | F3: Total | G3: 88.3 | H3: Dissolved | I3: 1
A4: 5941800 | B4: 1992-06-16 | C4: Ar | D4: 21 | E4: 0 | F4: Total | G4: 83.4 | H4: Dissolved | I4: 2.5
A5: 5941800 | B5: 1992-06-16 | C5: Ar | D5: 29 | E5: 9 | F5: Total | G5: 88.3 | H5: Dissolved | I5: 2.5
A6: 5941800 | B6: 1992-06-16 | C6: Cd | D6: 21 | E6: 0 | F6: Total | G6: 83.4 | H6: Dissolved | I6: 0.5
A7: 5941800 | B7: 1992-06-16 | C7: Cd | D7: 29 | E7: 9 | F7: Total | G7: 88.3 | H7: Dissolved | I7: 0.5
A8: 5941800 | B8: 1992-06-16 | C8: Cr | D8: 21 | E8: 0 | F8: Total | G8: 83.4 | H8: Dissolved | I8: 2.5
A9: 5941800 | B9: 1992-06-16 | C9: Cr | D9: 29 | E9: 9 | F9: Total | G9: 88.3 | H9: Dissolved | I9: 2.5
A10: 5941800 | B10: 1992-06-16 | C10: Cu | D10: 21 | E10: 0 | F10: Total | G10: 83.4 | H10: Dissolved | I10: 10
A11: 5941800 | B11: 1992-06-16 | C11: Cu | D11: 29 | E11: 9 | F11: Total | G11: 88.3 | H11: Dissolved | I11: 10
A12: 5941800 | B12: 1992-06-16 | C12: Fe | D12: 21 | E12: 0 | F12: Total | G12: 83.4 | H12: Dissolved | I12: 110
A13: 5941800 | B13: 1992-06-16 | C13: Fe | D13: 29 | E13: 9 | F13: Total | G13: 88.3 | H13: Dissolved | I13: 110
A14: 5941800 | B14: 1992-06-16 | C14: Hardness | D14: 21 | E14: 0 | F14: Total | G14: 83.4 | H14: Total | I14: 83.4
A15: 5941800 | B15: 1992-06-16 | C15: Hardness | D15: 21 | E15: 0 | F15: Total | G15: 83.4 | H15: Total | I15: 88.3
A16: 5941800 | B16: 1992-06-16 | C16: Hardness | D16: 29 | E16: 9 | F16: Total | G16: 88.3 | H16: Total | I16: 83.4
A17: 5941800 | B17: 1992-06-16 | C17: Hardness | D17: 29 | E17: 9 | F17: Total | G17: 88.3 | H17: Total | I17: 88.3
A18: 5941800 | B18: 1992-06-16 | C18: Hg | D18: 21 | E18: 0 | F18: Total | G18: 83.4 | H18: Dissolved | I18: 0.1
A19: 5941800 | B19: 1992-06-16 | C19: Hg | D19: 29 | E19: 9 | F19: Total | G19: 88.3 | H19: Dissolved | I19: 0.1
A20: 5941800 | B20: 1992-06-16 | C20: Mg | D20: 21 | E20: 0 | F20: Total | G20: 83.4 | H20: Dissolved | I20: 5.1
A21: 5941800 | B21: 1992-06-16 | C21: Mg | D21: 29 | E21: 9 | F21: Total | G21: 88.3 | H21: Dissolved | I21: 5.1
A22: 5941800 | B22: 1992-06-16 | C22: Mn | D22: 21 | E22: 0 | F22: Total | G22: 83.4 | H22: Dissolved | I22: 270
A23: 5941800 | B23: 1992-06-16 | C23: Mn | D23: 29 | E23: 9 | F23: Total | G23: 88.3 | H23: Dissolved | I23: 270
A24: 5941800 | B24: 1992-06-16 | C24: Pb | D24: 21 | E24: 0 | F24: Total | G24: 83.4 | H24: Dissolved | I24: 2.5
A25: 5941800 | B25: 1992-06-16 | C25: Pb | D25: 29 | E25: 9 | F25: Total | G25: 88.3 | H25: Dissolved | I25: 2.5
A26: 5941800 | B26: 1992-06-16 | C26: Se | D26: 21 | E26: 0 | F26: Total | G26: 83.4 | H26: Dissolved | I26: 2.5
A27: 5941800 | B27: 1992-06-16 | C27: Se | D27: 29 | E27: 9 | F27: Total | G27: 88.3 | H27: Dissolved | I27: 2.5
A28: 5941800 | B28: 1992-06-16 | C28: Zn | D28: 21 | E28: 0 | F28: Total | G28: 83.4 | H28: Dissolved | I28: 21
A29: 5941800 | B29: 1992-06-16 | C29: Zn | D29: 29 | E29: 9 | F29: Total | G29: 88.3 | H29: Dissolved | I29: 21
A30: 5941800 | B30: 1992-08-12 | C30: Ag | D30: 21 | E30: 0 | F30: Total | G30: 59.6 | H30: Dissolved | I30: 1
A31: 5941800 | B31: 1992-08-12 | C31: Ag | D31: 29 | E31: 6 | F31: Total | G31: 92.9 | H31: Dissolved | I31: 1
A32: 5941800 | B32: 1992-08-12 | C32: Ar | D32: 21 | E32: 0 | F32: Total | G32: 59.6 | H32: Dissolved | I32: 2.5
A33: 5941800 | B33: 1992-08-12 | C33: Ar | D33: 29 | E33: 6 | F33: Total | G33: 92.9 | H33: Dissolved | I33: 2.5
A34: 5941800 | B34: 1992-08-12 | C34: Cd | D34: 21 | E34: 0 | F34: Total | G34: 59.6 | H34: Dissolved | I34: 0.5
A35: 5941800 | B35: 1992-08-12 | C35: Cd | D35: 29 | E35: 6 | F35: Total | G35: 92.9 | H35: Dissolved | I35: 0.5
A36: 5941800 | B36: 1992-08-12 | C36: Cr | D36: 21 | E36: 0 | F36: Total | G36: 59.6 | H36: Dissolved | I36: 2.5
A37: 5941800 | B37: 1992-08-12 | C37: Cr | D37: 29 | E37: 6 | F37: Total | G37: 92.9 | H37: Dissolved | I37: 2.5
A38: 5941800 | B38: 1992-08-12 | C38: Cu | D38: 21 | E38: 0 | F38: Total | G38: 59.6 | H38: Dissolved | I38: 10
A39: 5941800 | B39: 1992-08-12 | C39: Cu | D39: 29 | E39: 6 | F39: Total | G39: 92.9 | H39: Dissolved | I39: 10
A40: 5941800 | B40: 1992-08-12 | C40: Fe | D40: 21 | E40: 0 | F40: Total | G40: 59.6 | H40: Dissolved | I40: 170
A41: 5941800 | B41: 1992-08-12 | C41: Fe | D41: 29 | E41: 6 | F41: Total | G41: 92.9 | H41: Dissolved | I41: 170
A42: 5941800 | B42: 1992-08-12 | C42: Hardness | D42: 21 | E42: 0 | F42: Total | G42: 59.6 | H42: Total | I42: 59.6
A43: 5941800 | B43: 1992-08-12 | C43: Hardness | D43: 21 | E43: 0 | F43: Total | G43: 59.6 | H43: Total | I43: 92.9
A44: 5941800 | B44: 1992-08-12 | C44: Hardness | D44: 29 | E44: 6 | F44: Total | G44: 92.9 | H44: Total | I44: 59.6
A45: 5941800 | B45: 1992-08-12 | C45: Hardness | D45: 29 | E45: 6 | F45: Total | G45: 92.9 | H45: Total | I45: 92.9
A46: 5941800 | B46: 1992-08-12 | C46: Hg | D46: 21 | E46: 0 | F46: Total | G46: 59.6 | H46: Dissolved | I46: 0.1
A47: 5941800 | B47: 1992-08-12 | C47: Hg | D47: 29 | E47: 6 | F47: Total | G47: 92.9 | H47: Dissolved | I47: 0.1
A48: 5941800 | B48: 1992-08-12 | C48: Mg | D48: 21 | E48: 0 | F48: Total | G48: 59.6 | H48: Dissolved | I48: 5.4
A49: 5941800 | B49: 1992-08-12 | C49: Mg | D49: 21 | E49: 0 | F49: Total | G49: 59.6 | H49: Dissolved | I49: 5.6
A50: 5941800 | B50: 1992-08-12 | C50: Mg | D50: 29 | E50: 6 | F50: Total | G50: 92.9 | H50: Dissolved | I50: 5.4
A51: 5941800 | B51: 1992-08-12 | C51: Mg | D51: 29 | E51: 6 | F51: Total | G51: 92.9 | H51: Dissolved | I51: 5.6
A52: 5941800 | B52: 1992-08-12 | C52: Mn | D52: 21 | E52: 0 | F52: Total | G52: 59.6 | H52: Dissolved | I52: 510
A53: 5941800 | B53: 1992-08-12 | C53: Mn | D53: 29 | E53: 6 | F53: Total | G53: 92.9 | H53: Dissolved | I53: 510
A54: 5941800 | B54: 1992-08-12 | C54: Pb | D54: 21 | E54: 0 | F54: Total | G54: 59.6 | H54: Dissolved | I54: 2.5
A55: 5941800 | B55: 1992-08-12 | C55: Pb | D55: 29 | E55: 6 | F55: Total | G55: 92.9 | H55: Dissolved | I55: 2.5
A56: 5941800 | B56: 1992-08-12 | C56: Se | D56: 21 | E56: 0 | F56: Total | G56: 59.6 | H56: Dissolved | I56: 2.5
A57: 5941800 | B57: 1992-08-12 | C57: Se | D57: 29 | E57: 6 | F57: Total | G57: 92.9 | H57: Dissolved | I57: 2.5
A58: 5941800 | B58: 1992-08-12 | C58: Zn | D58: 21 | E58: 0 | F58: Total | G58: 59.6 | H58: Dissolved | I58: 10
A59: 5941800 | B59: 1992-08-12 | C59: Zn | D59: 29 | E59: 6 | F59: Total | G59: 92.9 | H59: Dissolved | I59: 10
A60: 5941800 | B60: 1994-07-06 | C60: Hardness | D60: 21 | E60: 0 | F60: Total | G60: 74.6 | H60: Total | I60: 74.6
A61: 5941800 | B61: 1994-07-06 | C61: Mg | D61: 21 | E61: 0 | F61: Total | G61: 74.6 | H61: Dissolved | I61: 5.4
A62: 5941800 | B62: 1994-08-17 | C62: Ar | D62: 21 | F62: Total | G62: 54.7 | H62: Dissolved | I62: 2.5
A63: 5941800 | B63: 1994-08-17 | C63: Ar | D63: 21 | F63: Total | G63: 54.7 | H63: Total | I63: 44.5
A64: 5941800 | B64: 1994-08-17 | C64: Ar | D64: 29 | E64: 6.7 | F64: Total | G64: 80.8 | H64: Dissolved | I64: 2.5
A65: 5941800 | B65: 1994-08-17 | C65: Ar | D65: 29 | E65: 6.7 | F65: Total | G65: 80.8 | H65: Total | I65: 44.5
A66: 5941800 | B66: 1994-08-17 | C66: Cd | D66: 21 | F66: Total | G66: 54.7 | H66: Dissolved | I66: 0.5
A67: 5941800 | B67: 1994-08-17 | C67: Cd | D67: 21 | F67: Total | G67: 54.7 | H67: Total | I67: 4.45
A68: 5941800 | B68: 1994-08-17 | C68: Cd | D68: 29 | E68: 6.7 | F68: Total | G68: 80.8 | H68: Dissolved | I68: 0.5
A69: 5941800 | B69: 1994-08-17 | C69: Cd | D69: 29 | E69: 6.7 | F69: Total | G69: 80.8 | H69: Total | I69: 4.45
A70: 5941800 | B70: 1994-08-17 | C70: Cu | D70: 21 | F70: Total | G70: 54.7 | H70: Dissolved | I70: 10
A71: 5941800 | B71: 1994-08-17 | C71: Cu | D71: 21 | F71: Total | G71: 54.7 | H71: Total | I71: 20
A72: 5941800 | B72: 1994-08-17 | C72: Cu | D72: 29 | E72: 6.7 | F72: Total | G72: 80.8 | H72: Dissolved | I72: 10
A73: 5941800 | B73: 1994-08-17 | C73: Cu | D73: 29 | E73: 6.7 | F73: Total | G73: 80.8 | H73: Total | I73: 20
A74: 5941800 | B74: 1994-08-17 | C74: Hardness | D74: 21 | F74: Total | G74: 54.7 | H74: Total | I74: 54.7
A75: 5941800 | B75: 1994-08-17 | C75: Hardness | D75: 21 | F75: Total | G75: 54.7 | H75: Total | I75: 80.8
A76: 5941800 | B76: 1994-08-17 | C76: Hardness | D76: 29 | E76: 6.7 | F76: Total | G76: 80.8 | H76: Total | I76: 54.7
A77: 5941800 | B77: 1994-08-17 | C77: Hardness | D77: 29 | E77: 6.7 | F77: Total | G77: 80.8 | H77: Total | I77: 80.8
A78: 5941800 | B78: 1994-08-17 | C78: Hg | D78: 21 | F78: Total | G78: 54.7 | H78: Dissolved | I78: 0.1
A79: 5941800 | B79: 1994-08-17 | C79: Hg | D79: 21 | F79: Total | G79: 54.7 | H79: Total | I79: 0.22
A80: 5941800 | B80: 1994-08-17 | C80: Hg | D80: 29 | E80: 6.7 | F80: Total | G80: 80.8 | H80: Dissolved | I80: 0.1
A81: 5941800 | B81: 1994-08-17 | C81: Hg | D81: 29 | E81: 6.7 | F81: Total | G81: 80.8 | H81: Total | I81: 0.22
A82: 5941800 | B82: 1994-08-17 | C82: Mg | D82: 21 | F82: Total | G82: 54.7 | H82: Dissolved | I82: 5.4
A83: 5941800 | B83: 1994-08-17 | C83: Mg | D83: 21 | F83: Total | G83: 54.7 | H83: Dissolved | I83: 5.7
A84: 5941800 | B84: 1994-08-17 | C84: Mg | D84: 29 | E84: 6.7 | F84: Total | G84: 80.8 | H84: Dissolved | I84: 5.4
A85: 5941800 | B85: 1994-08-17 | C85: Mg | D85: 29 | E85: 6.7 | F85: Total | G85: 80.8 | H85: Dissolved | I85: 5.7
A86: 5941800 | B86: 1994-08-17 | C86: Pb | D86: 21 | F86: Total | G86: 54.7 | H86: Dissolved | I86: 1.5
A87: 5941800 | B87: 1994-08-17 | C87: Pb | D87: 21 | F87: Total | G87: 54.7 | H87: Total | I87: 44.5
A88: 5941800 | B88: 1994-08-17 | C88: Pb | D88: 29 | E88: 6.7 | F88: Total | G88: 80.8 | H88: Dissolved | I88: 1.5
A89: 5941800 | B89: 1994-08-17 | C89: Pb | D89: 29 | E89: 6.7 | F89: Total | G89: 80.8 | H89: Total | I89: 44.5
A90: 5941800 | B90: 1994-08-17 | C90: Se | D90: 21 | F90: Total | G90: 54.7 | H90: Dissolved | I90: 1
A91: 5941800 | B91: 1994-08-17 | C91: Se | D91: 21 | F91: Total | G91: 54.7 | H91: Total | I91: 44.5
A92: 5941800 | B92: 1994-08-17 | C92: Se | D92: 29 | E92: 6.7 | F92: Total | G92: 80.8 | H92: Dissolved | I92: 1
A93: 5941800 | B93: 1994-08-17 | C93: Se | D93: 29 | E93: 6.7 | F93: Total | G93: 80.8 | H93: Total | I93: 44.5
A94: 5941800 | B94: 1996-07-01 | C94: Hardness | D94: 21 | E94: 0 | F94: Total | G94: 81.6 | H94: Total | I94: 81.6
A95: 5941800 | B95: 1996-07-01 | C95: Mg | D95: 21 | E95: 0 | F95: Total | G95: 81.6 | H95: Dissolved | I95: 5.33
A96: 5941800 | B96: 1996-08-14 | C96: Ar | D96: 21 | E96: 0 | F96: Total | G96: 78 | H96: Dissolved | I96: 2.5
A97: 5941800 | B97: 1996-08-14 | C97: Ar | D97: 29 | E97: 8.3 | F97: Total | G97: 93.3 | H97: Dissolved | I97: 2.5
A98: 5941800 | B98: 1996-08-14 | C98: Cd | D98: 21 | E98: 0 | F98: Total | G98: 78 | H98: Dissolved | I98: 0.5
A99: 5941800 | B99: 1996-08-14 | C99: Cd | D99: 29 | E99: 8.3 | F99: Total | G99: 93.3 | H99: Dissolved | I99: 0.5
A100: 5941800 | B100: 1996-08-14 | C100: Cu | D100: 21 | E100: 0 | F100: Total | G100: 78 | H100: Dissolved | I100: 6
A101: 5941800 | B101: 1996-08-14 | C101: Cu | D101: 29 | E101: 8.3 | F101: Total | G101: 93.3 | H101: Dissolved | I101: 6
A102: 5941800 | B102: 1996-08-14 | C102: Hardness | D102: 21 | E102: 0 | F102: Total | G102: 78 | H102: Total | I102: 78
A103: 5941800 | B103: 1996-08-14 | C103: Hardness | D103: 21 | E103: 0 | F103: Total | G103: 78 | H103: Total | I103: 93.3
A104: 5941800 | B104: 1996-08-14 | C104: Hardness | D104: 29 | E104: 8.3 | F104: Total | G104: 93.3 | H104: Total | I104: 78
A105: 5941800 | B105: 1996-08-14 | C105: Hardness | D105: 29 | E105: 8.3 | F105: Total | G105: 93.3 | H105: Total | I105: 93.3
A106: 5941800 | B106: 1996-08-14 | C106: Hg | D106: 21 | E106: 0 | F106: Total | G106: 78 | H106: Dissolved | I106: 0.1
A107: 5941800 | B107: 1996-08-14 | C107: Hg | D107: 29 | E107: 8.3 | F107: Total | G107: 93.3 | H107: Dissolved | I107: 0.1
A108: 5941800 | B108: 1996-08-14 | C108: Mg | D108: 21 | E108: 0 | F108: Total | G108: 78 | H108: Dissolved | I108: 5.62
A109: 5941800 | B109: 1996-08-14 | C109: Mg | D109: 21 | E109: 0 | F109: Total | G109: 78 | H109: Dissolved | I109: 5.82
A110: 5941800 | B110: 1996-08-14 | C110: Mg | D110: 29 | E110: 8.3 | F110: Total | G110: 93.3 | H110: Dissolved | I110: 5.62
A111: 5941800 | B111: 1996-08-14 | C111: Mg | D111: 29 | E111: 8.3 | F111: Total | G111: 93.3 | H111: Dissolved | I111: 5.82
A112: 5941800 | B112: 1996-08-14 | C112: Pb | D112: 21 | E112: 0 | F112: Total | G112: 78 | H112: Dissolved | I112: 1.5
A113: 5941800 | B113: 1996-08-14 | C113: Pb | D113: 29 | E113: 8.3 | F113: Total | G113: 93.3 | H113: Dissolved | I113: 1.5
A114: 5941800 | B114: 1996-08-14 | C114: Se | D114: 21 | E114: 0 | F114: Total | G114: 78 | H114: Dissolved | I114: 0.5
A115: 5941800 | B115: 1996-08-14 | C115: Se | D115: 29 | E115: 8.3 | F115: Total | G115: 93.3 | H115: Dissolved | I115: 0.5
A116: 5941800 | B116: 1998-07-14 | C116: Hardness | D116: 21 | E116: 0.1 | F116: Total | G116: 77 | H116: Total | I116: 77
A117: 5941800 | B117: 1998-07-14 | C117: Mg | D117: 21 | E117: 0.1 | F117: Total | G117: 77 | H117: Dissolved | I117: 4.7
A118: 5941800 | B118: 1998-09-22 | C118: Ag | D118: 21 | E118: 0.1 | F118: Total | G118: 82.2 | H118: Dissolved | I118: 1
A119: 5941800 | B119: 1998-09-22 | C119: Ag | D119: 29 | E119: 9.8 | F119: Total | G119: 83 | H119: Dissolved | I119: 1
A120: 5941800 | B120: 1998-09-22 | C120: Al | D120: 21 | E120: 0.1 | F120: Total | G120: 82.2 | H120: Dissolved | I120: 54
A121: 5941800 | B121: 1998-09-22 | C121: Al | D121: 29 | E121: 9.8 | F121: Total | G121: 83 | H121: Dissolved | I121: 54
A122: 5941800 | B122: 1998-09-22 | C122: Ar | D122: 21 | E122: 0.1 | F122: Total | G122: 82.2 | H122: Dissolved | I122: 2.5
A123: 5941800 | B123: 1998-09-22 | C123: Ar | D123: 29 | E123: 9.8 | F123: Total | G123: 83 | H123: Dissolved | I123: 2.5
A124: 5941800 | B124: 1998-09-22 | C124: Cd | D124: 21 | E124: 0.1 | F124: Total | G124: 82.2 | H124: Dissolved | I124: 0.5
A125: 5941800 | B125: 1998-09-22 | C125: Cd | D125: 29 | E125: 9.8 | F125: Total | G125: 83 | H125: Dissolved | I125: 0.5
A126: 5941800 | B126: 1998-09-22 | C126: Cr | D126: 21 | E126: 0.1 | F126: Total | G126: 82.2 | H126: Dissolved | I126: 2.5
A127: 5941800 | B127: 1998-09-22 | C127: Cr | D127: 29 | E127: 9.8 | F127: Total | G127: 83 | H127: Dissolved | I127: 2.5
A128: 5941800 | B128: 1998-09-22 | C128: Cu | D128: 21 | E128: 0.1 | F128: Total | G128: 82.2 | H128: Dissolved | I128: 6
A129: 5941800 | B129: 1998-09-22 | C129: Cu | D129: 29 | E129: 9.8 | F129: Total | G129: 83 | H129: Dissolved | I129: 6
A130: 5941800 | B130: 1998-09-22 | C130: Fe | D130: 21 | E130: 0.1 | F130: Total | G130: 82.2 | H130: Dissolved | I130: 104
A131: 5941800 | B131: 1998-09-22 | C131: Fe | D131: 29 | E131: 9.8 | F131: Total | G131: 83 | H131: Dissolved | I131: 104
A132: 5941800 | B132: 1998-09-22 | C132: Hardness | D132: 21 | E132: 0.1 | F132: Total | G132: 82.2 | H132: Total | I132: 82.2
A133: 5941800 | B133: 1998-09-22 | C133: Hardness | D133: 21 | E133: 0.1 | F133: Total | G133: 82.2 | H133: Total | I133: 83
A134: 5941800 | B134: 1998-09-22 | C134: Hardness | D134: 29 | E134: 9.8 | F134: Total | G134: 83 | H134: Total | I134: 82.2
A135: 5941800 | B135: 1998-09-22 | C135: Hardness | D135: 29 | E135: 9.8 | F135: Total | G135: 83 | H135: Total | I135: 83
A136: 5941800 | B136: 1998-09-22 | C136: Hg | D136: 21 | E136: 0.1 | F136: Total | G136: 82.2 | H136: Dissolved | I136: 0.1
A137: 5941800 | B137: 1998-09-22 | C137: Hg | D137: 29 | E137: 9.8 | F137: Total | G137: 83 | H137: Dissolved | I137: 0.1
A138: 5941800 | B138: 1998-09-22 | C138: Mg | D138: 21 | E138: 0.1 | F138: Total | G138: 82.2 | H138: Dissolved | I138: 5.07
A139: 5941800 | B139: 1998-09-22 | C139: Mg | D139: 21 | E139: 0.1 | F139: Total | G139: 82.2 | H139: Dissolved | I139: 5.13
A140: 5941800 | B140: 1998-09-22 | C140: Mg | D140: 29 | E140: 9.8 | F140: Total | G140: 83 | H140: Dissolved | I140: 5.07
A141: 5941800 | B141: 1998-09-22 | C141: Mg | D141: 29 | E141: 9.8 | F141: Total | G141: 83 | H141: Dissolved | I141: 5.13
A142: 5941800 | B142: 1998-09-22 | C142: Mn | D142: 21 | E142: 0.1 | F142: Total | G142: 82.2 | H142: Dissolved | I142: 170
A143: 5941800 | B143: 1998-09-22 | C143: Mn | D143: 29 | E143: 9.8 | F143: Total | G143: 83 | H143: Dissolved | I143: 170
A144: 5941800 | B144: 1998-09-22 | C144: Pb | D144: 21 | E144: 0.1 | F144: Total | G144: 82.2 | H144: Dissolved | I144: 1.5
A145: 5941800 | B145: 1998-09-22 | C145: Pb | D145: 29 | E145: 9.8 | F145: Total | G145: 83 | H145: Dissolved | I145: 1.5
A146: 5941800 | B146: 1998-09-22 | C146: Se | D146: 21 | E146: 0.1 | F146: Total | G146: 82.2 | H146: Dissolved | I146: 0.5
A147: 5941800 | B147: 1998-09-22 | C147: Se | D147: 29 | E147: 9.8 | F147: Total | G147: 83 | H147: Dissolved | I147: 0.5
A148: 5941800 | B148: 1998-09-22 | C148: Zn | D148: 21 | E148: 0.1 | F148: Total | G148: 82.2 | H148: Dissolved | I148: 15
A149: 5941800 | B149: 1998-09-22 | C149: Zn | D149: 29 | E149: 9.8 | F149: Total | G149: 83 | H149: Dissolved | I149: 15
A150: 5941800 | B150: 2000-06-28 | C150: Hardness | D150: 21 | E150: 0 | F150: Dissolved | G150: 94.9 | H150: Dissolved | I150: 94.9
A151: 5941800 | B151: 2000-06-28 | C151: Mg | D151: 21 | E151: 0 | F151: Dissolved | G151: 94.9 | H151: Dissolved | I151: 5.85
A152: 5941800 | B152: 2000-08-23 | C152: Ag | D152: 21 | E152: 0 | F152: Dissolved | G152: 96.5 | H152: Dissolved | I152: 1
A153: 5941800 | B153: 2000-08-23 | C153: Ag | D153: 29 | E153: 3.7 | F153: Dissolved | G153: 98.7 | H153: Dissolved | I153: 1
A154: 5941800 | B154: 2000-08-23 | C154: Al | D154: 21 | E154: 0 | F154: Dissolved | G154: 96.5 | H154: Dissolved | I154: 15
A155: 5941800 | B155: 2000-08-23 | C155: Al | D155: 29 | E155: 3.7 | F155: Dissolved | G155: 98.7 | H155: Dissolved | I155: 15
A156: 5941800 | B156: 2000-08-23 | C156: Ar | D156: 21 | E156: 0 | F156: Dissolved | G156: 96.5 | H156: Dissolved | I156: 2.5
A157: 5941800 | B157: 2000-08-23 | C157: Ar | D157: 29 | E157: 3.7 | F157: Dissolved | G157: 98.7 | H157: Dissolved | I157: 2.5
A158: 5941800 | B158: 2000-08-23 | C158: Cd | D158: 21 | E158: 0 | F158: Dissolved | G158: 96.5 | H158: Dissolved | I158: 0.5
A159: 5941800 | B159: 2000-08-23 | C159: Cd | D159: 29 | E159: 3.7 | F159: Dissolved | G159: 98.7 | H159: Dissolved | I159: 0.5
A160: 5941800 | B160: 2000-08-23 | C160: Cr | D160: 21 | E160: 0 | F160: Dissolved | G160: 96.5 | H160: Dissolved | I160: 2.5
A161: 5941800 | B161: 2000-08-23 | C161: Cr | D161: 29 | E161: 3.7 | F161: Dissolved | G161: 98.7 | H161: Dissolved | I161: 2.5
A162: 5941800 | B162: 2000-08-23 | C162: Cu | D162: 21 | E162: 0 | F162: Dissolved | G162: 96.5 | H162: Dissolved | I162: 6
A163: 5941800 | B163: 2000-08-23 | C163: Cu | D163: 29 | E163: 3.7 | F163: Dissolved | G163: 98.7 | H163: Dissolved | I163: 6
A164: 5941800 | B164: 2000-08-23 | C164: Fe | D164: 21 | E164: 0 | F164: Dissolved | G164: 96.5 | H164: Dissolved | I164: 33.1
A165: 5941800 | B165: 2000-08-23 | C165: Fe | D165: 29 | E165: 3.7 | F165: Dissolved | G165: 98.7 | H165: Dissolved | I165: 33.1
A166: 5941800 | B166: 2000-08-23 | C166: Hardness | D166: 21 | E166: 0 | F166: Dissolved | G166: 96.5 | H166: Dissolved | I166: 96.5
A167: 5941800 | B167: 2000-08-23 | C167: Hardness | D167: 21 | E167: 0 | F167: Dissolved | G167: 96.5 | H167: Dissolved | I167: 98.7
A168: 5941800 | B168: 2000-08-23 | C168: Hardness | D168: 29 | E168: 3.7 | F168: Dissolved | G168: 98.7 | H168: Dissolved | I168: 96.5
A169: 5941800 | B169: 2000-08-23 | C169: Hardness | D169: 29 | E169: 3.7 | F169: Dissolved | G169: 98.7 | H169: Dissolved | I169: 98.7
A170: 5941800 | B170: 2000-08-23 | C170: Hg | D170: 21 | E170: 0 | F170: Dissolved | G170: 96.5 | H170: Dissolved | I170: 0.1
A171: 5941800 | B171: 2000-08-23 | C171: Hg | D171: 29 | E171: 3.7 | F171: Dissolved | G171: 98.7 | H171: Dissolved | I171: 0.1
A172: 5941800 | B172: 2000-08-23 | C172: Mg | D172: 21 | E172: 0 | F172: Dissolved | G172: 96.5 | H172: Dissolved | I172: 6.015
A173: 5941800 | B173: 2000-08-23 | C173: Mg | D173: 29 | E173: 3.7 | F173: Dissolved | G173: 98.7 | H173: Dissolved | I173: 6.015
A174: 5941800 | B174: 2000-08-23 | C174: Mn | D174: 21 | E174: 0 | F174: Dissolved | G174: 96.5 | H174: Dissolved | I174: 63.7
A175: 5941800 | B175: 2000-08-23 | C175: Mn | D175: 29 | E175: 3.7 | F175: Dissolved | G175: 98.7 | H175: Dissolved | I175: 63.7
A176: 5941800 | B176: 2000-08-23 | C176: Pb | D176: 21 | E176: 0 | F176: Dissolved | G176: 96.5 | H176: Dissolved | I176: 1.5
A177: 5941800 | B177: 2000-08-23 | C177: Pb | D177: 29 | E177: 3.7 | F177: Dissolved | G177: 98.7 | H177: Dissolved | I177: 1.5
A178: 5941800 | B178: 2000-08-23 | C178: Se | D178: 21 | E178: 0 | F178: Dissolved | G178: 96.5 | H178: Dissolved | I178: 0.5
A179: 5941800 | B179: 2000-08-23 | C179: Se | D179: 29 | E179: 3.7 | F179: Dissolved | G179: 98.7 | H179: Dissolved | I179: 0.5
A180: 5941800 | B180: 2000-08-23 | C180: Zn | D180: 21 | E180: 0 | F180: Dissolved | G180: 96.5 | H180: Dissolved | I180: 15
A181: 5941800 | B181: 2000-08-23 | C181: Zn | D181: 29 | E181: 3.7 | F181: Dissolved | G181: 98.7 | H181: Dissolved | I181: 15
A182: 5941800 | B182: 2004-06-10 | C182: Hardness | D182: 21 | E182: 0 | F182: Dissolved | G182: 114.2 | H182: Dissolved | I182: 114.2
A183: 5941800 | B183: 2004-06-10 | C183: Mg | D183: 21 | E183: 0 | F183: Dissolved | G183: 114.2 | H183: Dissolved | I183: 6.05
A184: 5941800 | B184: 2004-07-21 | C184: Hardness | D184: 21 | E184: 0 | F184: Dissolved | G184: 108.1 | H184: Dissolved | I184: 108.1
A185: 5941800 | B185: 2004-07-21 | C185: Mg | D185: 21 | E185: 0 | F185: Dissolved | G185: 108.1 | H185: Dissolved | I185: 6.01
A186: 5941800 | B186: 2004-08-04 | C186: Ag | D186: 21 | E186: 5.4 | F186: Dissolved | G186: 113.6 | H186: Dissolved | I186: 1
A187: 5941800 | B187: 2004-08-04 | C187: Ag | D187: 29 | F187: Dissolved | G187: 116.4 | H187: Dissolved | I187: 1
A188: 5941800 | B188: 2004-08-04 | C188: Al | D188: 21 | E188: 5.4 | F188: Dissolved | G188: 113.6 | H188: Dissolved | I188: 15
A189: 5941800 | B189: 2004-08-04 | C189: Al | D189: 29 | F189: Dissolved | G189: 116.4 | H189: Dissolved | I189: 15
A190: 5941800 | B190: 2004-08-04 | C190: Ar | D190: 21 | E190: 5.4 | F190: Dissolved | G190: 113.6 | H190: Dissolved | I190: 1.19
A191: 5941800 | B191: 2004-08-04 | C191: Ar | D191: 29 | F191: Dissolved | G191: 116.4 | H191: Dissolved | I191: 1.19
A192: 5941800 | B192: 2004-08-04 | C192: Cd | D192: 21 | E192: 5.4 | F192: Dissolved | G192: 113.6 | H192: Dissolved | I192: 0.5
A193: 5941800 | B193: 2004-08-04 | C193: Cd | D193: 29 | F193: Dissolved | G193: 116.4 | H193: Dissolved | I193: 0.5
A194: 5941800 | B194: 2004-08-04 | C194: Cr | D194: 21 | E194: 5.4 | F194: Dissolved | G194: 113.6 | H194: Dissolved | I194: 2.5
A195: 5941800 | B195: 2004-08-04 | C195: Cr | D195: 29 | F195: Dissolved | G195: 116.4 | H195: Dissolved | I195: 2.5
A196: 5941800 | B196: 2004-08-04 | C196: Cu | D196: 21 | E196: 5.4 | F196: Dissolved | G196: 113.6 | H196: Dissolved | I196: 6
A197: 5941800 | B197: 2004-08-04 | C197: Cu | D197: 29 | F197: Dissolved | G197: 116.4 | H197: Dissolved | I197: 6
A198: 5941800 | B198: 2004-08-04 | C198: Fe | D198: 21 | E198: 5.4 | F198: Dissolved | G198: 113.6 | H198: Dissolved | I198: 10
A199: 5941800 | B199: 2004-08-04 | C199: Fe | D199: 29 | F199: Dissolved | G199: 116.4 | H199: Dissolved | I199: 10
A200: 5941800 | B200: 2004-08-04 | C200: Hardness | D200: 21 | E200: 5.4 | F200: Dissolved | G200: 113.6 | H200: Dissolved | I200: 113.6
... 111 more rows

Sheet Assessment
